Department Family,Entity,Date Paid,Expense Type,Expenses Area,Supplier Name,Transaction Reference,Total,VAT Registration Number
Department of Health,Imperial College Healthcare NHS Trust,16/07/2015,Jac - Stock,Stock,A A H Pharmaceuticals Limited,3178637,"68,482.56",Optional requirement only
Department of Health,Imperial College Healthcare NHS Trust,21/07/2015,Jac - Stock,Stock,A A H Pharmaceuticals Limited,3179271,"34,910.40",Optional requirement only
Department of Health,Imperial College Healthcare NHS Trust,28/07/2015,Jac - Stock,Stock,A A H Pharmaceuticals Limited,3171200,"53,460.84",Optional requirement only
Department of Health,Imperial College Healthcare NHS Trust,01/07/2015,Acton Housing Association,Housing Deductions,A2dominion Housing Group Ltd,3168536,"172,397.53",Optional requirement only
Department of Health,Imperial College Healthcare NHS Trust,28/07/2015,Clinical Managed Service Contr,Investigative Sciences & C S,Abbott Laboratories Ltd,3181304,"53,587.51",Optional requirement only
Department of Health,Imperial College Healthcare NHS Trust,28/07/2015,Clinical Managed Service Contr,Investigative Sciences & C S,Abbott Laboratories Ltd,3181310,"261,943.78",Optional requirement only
Department of Health,Imperial College Healthcare NHS Trust,28/07/2015,Clinical Managed Service Contr,Investigative Sciences & C S,Abbott Laboratories Ltd,3181311,"53,042.20",Optional requirement only
Department of Health,Imperial College Healthcare NHS Trust,02/07/2015,Consultancy Fees,Finance Directorate,Advanced Business Solutions,3169872,"113,679.89",Optional requirement only
Department of Health,Imperial College Healthcare NHS Trust,07/07/2015,Agency Senior Manager,Finance Directorate,Alan Goldsman Limited,3170883,"39,600.00",Optional requirement only
Department of Health,Imperial College Healthcare NHS Trust,02/07/2015,Buildings-Additions-Purchased,Capital Summary,Amber Group Limited,3162467,"36,561.96",Optional requirement only
Department of Health,Imperial College Healthcare NHS Trust,28/07/2015,Med & Surg Equip Repair,Directorate Of Strategy,Arjo Huntleigh,3180311,"36,842.40",Optional requirement only
Department of Health,Imperial College Healthcare NHS Trust,09/07/2015,Jac - Stock,Stock,Bayer Plc,3168884,"47,196.00",Optional requirement only
Department of Health,Imperial College Healthcare NHS Trust,09/07/2015,Lab Equip Maint / Repairs,Investigative Sciences & C S,Beckman Coulter Uk Ltd,3164516,"57,268.49",Optional requirement only
Department of Health,Imperial College Healthcare NHS Trust,28/07/2015,Legal Fees,Investigative Sciences & C S,Bird & Bird Llp,3183973,"81,329.50",Optional requirement only
Department of Health,Imperial College Healthcare NHS Trust,14/07/2015,Computer Maintenance,Information & Comms Technology,Block Solutions Ltd,3175304,"149,544.84",Optional requirement only
Department of Health,Imperial College Healthcare NHS Trust,28/07/2015,Computer Maintenance,Information & Comms Technology,Block Solutions Ltd,3181004,"30,006.80",Optional requirement only
Department of Health,Imperial College Healthcare NHS Trust,02/07/2015,Other Research Exp - Pay,Rd Medical Directorate,Brunel University,3169977,"72,714.83",Optional requirement only
Department of Health,Imperial College Healthcare NHS Trust,28/07/2015,Srvcsrecd-Other Nhs,Finance Directorate,Calderstones Partnership-Nhs Foundation Trust,3175183,"34,215.00",Optional requirement only
Department of Health,Imperial College Healthcare NHS Trust,09/07/2015,Drugs Nhs,Division Of Medicine,Central & North West London,3173944,"25,786.87",Optional requirement only
Department of Health,Imperial College Healthcare NHS Trust,09/07/2015,Drugs Nhs,Division Of Medicine,Central & North West London,3173946,"26,128.57",Optional requirement only
Department of Health,Imperial College Healthcare NHS Trust,09/07/2015,Drugs Nhs,Division Of Medicine,Central & North West London,3173951,"32,082.29",Optional requirement only
Department of Health,Imperial College Healthcare NHS Trust,28/07/2015,Drugs Nhs,Division Of Medicine,Central & North West London,3173945,"26,011.49",Optional requirement only
Department of Health,Imperial College Healthcare NHS Trust,02/07/2015,Clinical Managed Service Contr,"Surg, Canc & Cardiovasc Div",Chas A Blatchford And Sons Ltd,3157622,"46,259.60",Optional requirement only
Department of Health,Imperial College Healthcare NHS Trust,07/07/2015,Srvcsrecd-Foundationtrust,Division Of Women And Children,Chelsea And  Westminster Hospital Nhs,3171629,"26,447.00",Optional requirement only
Department of Health,Imperial College Healthcare NHS Trust,16/07/2015,Srvcsrecd-Foundationtrust,Investigative Sciences & C S,Chelsea And  Westminster Hospital Nhs,3170005,"183,441.34",Optional requirement only
Department of Health,Imperial College Healthcare NHS Trust,16/07/2015,Srvcsrecd-Foundationtrust,Investigative Sciences & C S,Chelsea And  Westminster Hospital Nhs,3170079,"117,926.67",Optional requirement only
Department of Health,Imperial College Healthcare NHS Trust,16/07/2015,Srvcsrecd-Foundationtrust,Investigative Sciences & C S,Chelsea And  Westminster Hospital Nhs,3170080,"58,963.33",Optional requirement only
Department of Health,Imperial College Healthcare NHS Trust,23/07/2015,Srvcsrecd-Foundationtrust,Investigative Sciences & C S,Chelsea And  Westminster Hospital Nhs,3170882,"93,925.00",Optional requirement only
Department of Health,Imperial College Healthcare NHS Trust,08/07/2015,Rates,Directorate Of Strategy,City Of Westminster,3173422,"119,016.00",Optional requirement only
Department of Health,Imperial College Healthcare NHS Trust,16/07/2015,It Eqpt-Additions,Capital Summary,Civica Services Ltd,3171625,"72,713.28",Optional requirement only
Department of Health,Imperial College Healthcare NHS Trust,09/07/2015,Childcare Voucher (Kids Unltd),Childcare Vouchers,Computershare Voucher Services,3172601,"73,573.79",Optional requirement only
Department of Health,Imperial College Healthcare NHS Trust,01/07/2015,Gas,Directorate Of Strategy,Corona Energy,3168100,"56,485.31",Optional requirement only
Department of Health,Imperial College Healthcare NHS Trust,01/07/2015,Gas,Directorate Of Strategy,Corona Energy,3168101,"51,698.41",Optional requirement only
Department of Health,Imperial College Healthcare NHS Trust,01/07/2015,Gas,Directorate Of Strategy,Corona Energy,3168102,"116,440.97",Optional requirement only
Department of Health,Imperial College Healthcare NHS Trust,01/07/2015,Gas,Directorate Of Strategy,Corona Energy,3168114,"54,593.41",Optional requirement only
Department of Health,Imperial College Healthcare NHS Trust,01/07/2015,Jac - Stock,Stock,Csl Behring Uk Ltd,3157300,"33,480.00",Optional requirement only
Department of Health,Imperial College Healthcare NHS Trust,01/07/2015,Jac - Stock,Stock,Csl Behring Uk Ltd,3157304,"27,900.00",Optional requirement only
Department of Health,Imperial College Healthcare NHS Trust,14/07/2015,Jac - Stock,Stock,Csl Behring Uk Ltd,3164751,"55,800.00",Optional requirement only
Department of Health,Imperial College Healthcare NHS Trust,28/07/2015,Jac - Stock,Stock,Csl Behring Uk Ltd,3174388,"72,540.00",Optional requirement only
Department of Health,Imperial College Healthcare NHS Trust,14/07/2015,Rent,Directorate Of Strategy,Derwent London Property Management 50022,3177119,"85,926.00",Optional requirement only
Department of Health,Imperial College Healthcare NHS Trust,01/07/2015,Transcription Services,Division Of Medicine,Dictate It Ltd,3167608,"33,135.44",Optional requirement only
Department of Health,Imperial College Healthcare NHS Trust,28/07/2015,Transcription Services,Division Of Medicine,Dictate It Ltd,3184407,"38,319.48",Optional requirement only
Department of Health,Imperial College Healthcare NHS Trust,01/07/2015,Transcription Services,"Surg, Canc & Cardiovasc Div",Dictate It Ltd,3167606,"36,702.94",Optional requirement only
Department of Health,Imperial College Healthcare NHS Trust,28/07/2015,Transcription Services,"Surg, Canc & Cardiovasc Div",Dictate It Ltd,3184409,"41,961.82",Optional requirement only
Department of Health,Imperial College Healthcare NHS Trust,14/07/2015,Electricity,Directorate Of Strategy,Edf Energy,3176648,"238,530.94",Optional requirement only
Department of Health,Imperial College Healthcare NHS Trust,14/07/2015,Electricity,Directorate Of Strategy,Edf Energy,3176650,"33,617.91",Optional requirement only
Department of Health,Imperial College Healthcare NHS Trust,14/07/2015,Electricity,Directorate Of Strategy,Edf Energy,3176652,"88,441.66",Optional requirement only
Department of Health,Imperial College Healthcare NHS Trust,14/07/2015,Electricity,Directorate Of Strategy,Edf Energy,3176654,"233,411.55",Optional requirement only
Department of Health,Imperial College Healthcare NHS Trust,09/07/2015,Buildings-Additions-Purchased,Capital Summary,Ge Medical Systems Limited,3165393,"42,000.00",Optional requirement only
Department of Health,Imperial College Healthcare NHS Trust,01/07/2015,Clinical Managed Service Contr,Investigative Sciences & C S,Genmed.Me Ltd,3154548,"507,838.86",Optional requirement only
Department of Health,Imperial College Healthcare NHS Trust,16/07/2015,Clinical Managed Service Contr,Investigative Sciences & C S,Genmed.Me Ltd,3166281,"142,937.63",Optional requirement only
Department of Health,Imperial College Healthcare NHS Trust,16/07/2015,Clinical Managed Service Contr,Investigative Sciences & C S,Genmed.Me Ltd,3166282,"86,035.49",Optional requirement only
Department of Health,Imperial College Healthcare NHS Trust,28/07/2015,Clinical Managed Service Contr,Investigative Sciences & C S,Genmed.Me Ltd,3183970,"507,838.86",Optional requirement only
Department of Health,Imperial College Healthcare NHS Trust,07/07/2015,Jac - Stock,Stock,Genzyme Therapeutics Ltd,3168928,"67,632.00",Optional requirement only
Department of Health,Imperial College Healthcare NHS Trust,07/07/2015,Jac - Stock,Stock,Genzyme Therapeutics Ltd,3168930,"67,632.00",Optional requirement only
Department of Health,Imperial College Healthcare NHS Trust,16/07/2015,Jac - Stock,Stock,Genzyme Therapeutics Ltd,3167021,"101,448.00",Optional requirement only
Department of Health,Imperial College Healthcare NHS Trust,21/07/2015,Jac - Stock,Stock,Genzyme Therapeutics Ltd,3169089,"84,540.00",Optional requirement only
Department of Health,Imperial College Healthcare NHS Trust,07/07/2015,Jac - Stock,Stock,Gilead Sciences Ltd,3161421,"50,630.40",Optional requirement only
Department of Health,Imperial College Healthcare NHS Trust,28/07/2015,Buildings-Additions-Purchased,Capital Summary,Gray Dungate Poole Ltd,3183975,"56,941.20",Optional requirement only
Department of Health,Imperial College Healthcare NHS Trust,14/07/2015,Contr Refuse & Clin Waste,Directorate Of Strategy,Grundon Waste Management Ltd,3175043,"31,339.48",Optional requirement only
Department of Health,Imperial College Healthcare NHS Trust,28/07/2015,Jac - Stock,Stock,Healthcare Product Services Ltd,3183748,"406,800.00",Optional requirement only
Department of Health,Imperial College Healthcare NHS Trust,23/07/2015,Nhs Pay Recharge In: Med,Division Of Medicine,Hillingdon Hospital Nhs Trust,3182978,"38,853.64",Optional requirement only
Department of Health,Imperial College Healthcare NHS Trust,21/07/2015,Consultancy Fees,Director Of Operations,Ideal Health Consultants Ltd,3181192,"30,336.00",Optional requirement only
Department of Health,Imperial College Healthcare NHS Trust,21/07/2015,Consultancy Fees,Director Of Operations,Ideal Health Consultants Ltd,3181195,"65,280.00",Optional requirement only
Department of Health,Imperial College Healthcare NHS Trust,21/07/2015,Consultancy Fees,Director Of Operations,Ideal Health Consultants Ltd,3181196,"30,336.00",Optional requirement only
Department of Health,Imperial College Healthcare NHS Trust,16/07/2015,Consultancy Fees,Information & Comms Technology,Ideal Health Consultants Ltd,3178788,"90,018.00",Optional requirement only
Department of Health,Imperial College Healthcare NHS Trust,01/07/2015,Decontamination Services,Directorate Of Strategy,Ihss Ltd,3168495,"320,891.38",Optional requirement only
Department of Health,Imperial College Healthcare NHS Trust,02/07/2015,Decontamination Services,Directorate Of Strategy,Ihss Ltd,3168496,"320,891.38",Optional requirement only
Department of Health,Imperial College Healthcare NHS Trust,14/07/2015,Rent,Human Resources,Imperial College Healthcare Charity,3175031,"100,000.00",Optional requirement only
Department of Health,Imperial College Healthcare NHS Trust,01/07/2015,Dist Award - Local Cea,Division Of Medicine,Imperial College London,3168518,"39,251.96",Optional requirement only
Department of Health,Imperial College Healthcare NHS Trust,01/07/2015,Dist Award - Nat Cea,Division Of Medicine,Imperial College London,3168518,"68,455.71",Optional requirement only
Department of Health,Imperial College Healthcare NHS Trust,01/07/2015,Ic Pay Recharge In: Med,Division Of Medicine,Imperial College London,3168514,"112,363.42",Optional requirement only
Department of Health,Imperial College Healthcare NHS Trust,01/07/2015,Ic Pay Recharge In: Med,Division Of Medicine,Imperial College London,3168518,"68,845.67",Optional requirement only
Department of Health,Imperial College Healthcare NHS Trust,01/07/2015,Dist Award - Nat Cea,Division Of Women And Children,Imperial College London,3168518,"31,619.33",Optional requirement only
Department of Health,Imperial College Healthcare NHS Trust,01/07/2015,Ic Pay Recharge In: Med,Division Of Women And Children,Imperial College London,3168514,"66,301.18",Optional requirement only
Department of Health,Imperial College Healthcare NHS Trust,01/07/2015,Dist Award - Nat Cea,Investigative Sciences & C S,Imperial College London,3168518,"26,604.25",Optional requirement only
Department of Health,Imperial College Healthcare NHS Trust,01/07/2015,Ic Pay Recharge In: Med,Investigative Sciences & C S,Imperial College London,3168514,"51,001.74",Optional requirement only
Department of Health,Imperial College Healthcare NHS Trust,01/07/2015,Dist Award - Nat Cea,Medical Director Summary,Imperial College London,3168518,"31,577.75",Optional requirement only
Department of Health,Imperial College Healthcare NHS Trust,21/07/2015,Ic Library Expenditure,Medical Director Summary,Imperial College London,3180271,"92,131.50",Optional requirement only
Department of Health,Imperial College Healthcare NHS Trust,02/07/2015,Other Research Exp - Pay,Rd Iscs Division,Imperial College London,3169985,"169,385.73",Optional requirement only
Department of Health,Imperial College Healthcare NHS Trust,02/07/2015,Other Research Exp - Pay,Rd Iscs Division,Imperial College London,3169997,"85,465.13",Optional requirement only
Department of Health,Imperial College Healthcare NHS Trust,02/07/2015,Other Research Exp - Pay,Rd Iscs Division,Imperial College London,3170003,"51,122.90",Optional requirement only
Department of Health,Imperial College Healthcare NHS Trust,02/07/2015,Other Research Exp - Pay,Rd Iscs Division,Imperial College London,3170019,"63,497.77",Optional requirement only
Department of Health,Imperial College Healthcare NHS Trust,28/07/2015,Nhs Pay Recharge In: Med,Rd Iscs Division,Imperial College London,3185061,"160,202.98",Optional requirement only
Department of Health,Imperial College Healthcare NHS Trust,01/07/2015,R&D Revenue - Non-Nhs,Rd Medical Directorate,Imperial College London,3167174,"27,088.34",Optional requirement only
Department of Health,Imperial College Healthcare NHS Trust,02/07/2015,Other Research Exp - Non-Pay,Rd Medical Directorate,Imperial College London,3170023,"53,777.83",Optional requirement only
Department of Health,Imperial College Healthcare NHS Trust,02/07/2015,Other Research Exp - Pay,Rd Medical Directorate,Imperial College London,3169993,"67,995.36",Optional requirement only
Department of Health,Imperial College Healthcare NHS Trust,21/07/2015,Other Research Exp - Pay,Rd Medical Directorate,Imperial College London,3178048,"77,423.39",Optional requirement only
Department of Health,Imperial College Healthcare NHS Trust,23/07/2015,Other Research Exp - Pay,Rd Medical Directorate,Imperial College London,3183004,"33,439.98",Optional requirement only
Department of Health,Imperial College Healthcare NHS Trust,28/07/2015,Ic Pay Recharge In: Med,Rd Medical Directorate,Imperial College London,3185058,"154,937.00",Optional requirement only
Department of Health,Imperial College Healthcare NHS Trust,28/07/2015,Other Research Exp - Pay,Rd Medical Directorate,Imperial College London,3185059,"75,570.93",Optional requirement only
Department of Health,Imperial College Healthcare NHS Trust,28/07/2015,Other Research Exp - Pay,Rd Medical Directorate,Imperial College London,3185063,"66,606.07",Optional requirement only
Department of Health,Imperial College Healthcare NHS Trust,01/07/2015,Other Research Exp - Pay,Rd Medicine Division,Imperial College London,3167164,"37,585.45",Optional requirement only
Department of Health,Imperial College Healthcare NHS Trust,01/07/2015,Other Research Exp - Pay,Rd Medicine Division,Imperial College London,3167199,"34,932.98",Optional requirement only
Department of Health,Imperial College Healthcare NHS Trust,02/07/2015,Other Research Exp - Non-Pay,Rd Medicine Division,Imperial College London,3169986,"166,620.94",Optional requirement only
Department of Health,Imperial College Healthcare NHS Trust,02/07/2015,Other Research Exp - Non-Pay,Rd Medicine Division,Imperial College London,3170022,"76,703.02",Optional requirement only
Department of Health,Imperial College Healthcare NHS Trust,02/07/2015,Other Research Exp - Pay,Rd Medicine Division,Imperial College London,3169981,"123,288.95",Optional requirement only
Department of Health,Imperial College Healthcare NHS Trust,02/07/2015,Other Research Exp - Pay,Rd Medicine Division,Imperial College London,3169983,"61,308.77",Optional requirement only
Department of Health,Imperial College Healthcare NHS Trust,02/07/2015,Other Research Exp - Pay,Rd Medicine Division,Imperial College London,3169986,"125,093.60",Optional requirement only
Department of Health,Imperial College Healthcare NHS Trust,02/07/2015,Other Research Exp - Pay,Rd Medicine Division,Imperial College London,3169988,"131,326.41",Optional requirement only
Department of Health,Imperial College Healthcare NHS Trust,02/07/2015,Other Research Exp - Pay,Rd Medicine Division,Imperial College London,3169999,"80,367.80",Optional requirement only
Department of Health,Imperial College Healthcare NHS Trust,02/07/2015,Other Research Exp - Pay,Rd Medicine Division,Imperial College London,3170002,"71,053.16",Optional requirement only
Department of Health,Imperial College Healthcare NHS Trust,02/07/2015,Other Research Exp - Pay,Rd Medicine Division,Imperial College London,3170008,"59,822.01",Optional requirement only
Department of Health,Imperial College Healthcare NHS Trust,02/07/2015,Other Research Exp - Pay,Rd Medicine Division,Imperial College London,3170022,"46,585.93",Optional requirement only
Department of Health,Imperial College Healthcare NHS Trust,02/07/2015,Other Research Exp - Pay,Rd Medicine Division,Imperial College London,3170073,"87,006.10",Optional requirement only
Department of Health,Imperial College Healthcare NHS Trust,23/07/2015,Other Research Exp - Pay,Rd Medicine Division,Imperial College London,3182995,"37,585.45",Optional requirement only
Department of Health,Imperial College Healthcare NHS Trust,28/07/2015,Other Research Exp - Pay,Rd Medicine Division,Imperial College London,3185060,"72,000.00",Optional requirement only
Department of Health,Imperial College Healthcare NHS Trust,02/07/2015,Computer Software/License,Rd Surgery & Cancer Division,Imperial College London,3169979,"108,549.96",Optional requirement only
Department of Health,Imperial College Healthcare NHS Trust,02/07/2015,Other Research Exp - Non-Pay,Rd Surgery & Cancer Division,Imperial College London,3170018,"176,398.15",Optional requirement only
Department of Health,Imperial College Healthcare NHS Trust,02/07/2015,Other Research Exp - Pay,Rd Surgery & Cancer Division,Imperial College London,3170000,"55,051.48",Optional requirement only
Department of Health,Imperial College Healthcare NHS Trust,02/07/2015,Other Research Exp - Pay,Rd Surgery & Cancer Division,Imperial College London,3170004,"54,219.47",Optional requirement only
Department of Health,Imperial College Healthcare NHS Trust,02/07/2015,Other Research Exp - Pay,Rd Surgery & Cancer Division,Imperial College London,3170020,"108,521.81",Optional requirement only
Department of Health,Imperial College Healthcare NHS Trust,23/07/2015,Other Research Exp - Pay,Rd Surgery & Cancer Division,Imperial College London,3182987,"38,860.49",Optional requirement only
Department of Health,Imperial College Healthcare NHS Trust,23/07/2015,Other Research Exp - Pay,Rd Surgery & Cancer Division,Imperial College London,3182991,"29,260.92",Optional requirement only
Department of Health,Imperial College Healthcare NHS Trust,28/07/2015,Other Research Exp - Pay,Rd Surgery & Cancer Division,Imperial College London,3185139,"95,421.25",Optional requirement only
Department of Health,Imperial College Healthcare NHS Trust,01/07/2015,Other Research Exp - Pay,Rdwomen And Children Division,Imperial College London,3167126,"37,022.49",Optional requirement only
Department of Health,Imperial College Healthcare NHS Trust,02/07/2015,Other Research Exp - Pay,Rdwomen And Children Division,Imperial College London,3169998,"65,746.89",Optional requirement only
Department of Health,Imperial College Healthcare NHS Trust,23/07/2015,Other Research Exp - Pay,Rdwomen And Children Division,Imperial College London,3183000,"40,263.79",Optional requirement only
Department of Health,Imperial College Healthcare NHS Trust,01/07/2015,Dist Award - Local Cea,"Surg, Canc & Cardiovasc Div",Imperial College London,3168518,"40,630.42",Optional requirement only
Department of Health,Imperial College Healthcare NHS Trust,01/07/2015,Dist Award - Nat Cea,"Surg, Canc & Cardiovasc Div",Imperial College London,3168518,"65,432.32",Optional requirement only
Department of Health,Imperial College Healthcare NHS Trust,01/07/2015,Ic Pay Recharge In: Med,"Surg, Canc & Cardiovasc Div",Imperial College London,3168514,"241,746.80",Optional requirement only
Department of Health,Imperial College Healthcare NHS Trust,01/07/2015,Ic Pay Recharge In: Med,"Surg, Canc & Cardiovasc Div",Imperial College London,3168518,"96,690.37",Optional requirement only
Department of Health,Imperial College Healthcare NHS Trust,02/07/2015,It Eqpt-Additions,Capital Summary,Isosec Limited,3157091,"43,194.00",Optional requirement only
Department of Health,Imperial College Healthcare NHS Trust,14/07/2015,Buildings-Additions-Purchased,Capital Summary,J.C. Watson Refrigeration,3176705,"109,378.80",Optional requirement only
Department of Health,Imperial College Healthcare NHS Trust,28/07/2015,Computer Software/License,Information & Comms Technology,Jayex Technology Limited,3176818,"39,360.00",Optional requirement only
Department of Health,Imperial College Healthcare NHS Trust,28/07/2015,Computer Software/License,Information & Comms Technology,Jayex Technology Limited,3176821,"36,794.46",Optional requirement only
Department of Health,Imperial College Healthcare NHS Trust,13/07/2015,It Eqpt-Additions,Capital Summary,Kelway (Uk) Ltd,3153414,"291,240.60",Optional requirement only
Department of Health,Imperial College Healthcare NHS Trust,14/07/2015,It Eqpt-Additions,Capital Summary,Kelway (Uk) Ltd,3161215,"57,294.77",Optional requirement only
Department of Health,Imperial College Healthcare NHS Trust,23/07/2015,It Eqpt-Additions,Capital Summary,Kelway (Uk) Ltd,3171626,"34,753.92",Optional requirement only
Department of Health,Imperial College Healthcare NHS Trust,28/07/2015,It Eqpt-Additions,Capital Summary,Kelway (Uk) Ltd,3175606,"102,523.85",Optional requirement only
Department of Health,Imperial College Healthcare NHS Trust,28/07/2015,It Eqpt-Additions,Capital Summary,Kelway (Uk) Ltd,3175614,"61,688.14",Optional requirement only
Department of Health,Imperial College Healthcare NHS Trust,28/07/2015,It Eqpt-Additions,Capital Summary,Kelway (Uk) Ltd,3180129,"391,008.66",Optional requirement only
Department of Health,Imperial College Healthcare NHS Trust,28/07/2015,It Eqpt-Additions,Capital Summary,Kelway (Uk) Ltd,3183972,"108,971.35",Optional requirement only
Department of Health,Imperial College Healthcare NHS Trust,23/07/2015,Buildings-Additions-Purchased,Capital Summary,Leemoll Services Ltd,3181729,"61,526.40",Optional requirement only
Department of Health,Imperial College Healthcare NHS Trust,01/07/2015,Clinical Managed Service Contr,Investigative Sciences & C S,Leica Microsystems (Uk) Ltd,3153190,"74,446.09",Optional requirement only
Department of Health,Imperial College Healthcare NHS Trust,23/07/2015,Drugs Nhs,Investigative Sciences & C S,Lloyds Retail Chemists Ltd,3182016,"2,686,212.08",Optional requirement only
Department of Health,Imperial College Healthcare NHS Trust,17/07/2015,Rates,Directorate Of Strategy,London Borough Hammersmith & Fulham,3180263,"137,997.00",Optional requirement only
Department of Health,Imperial College Healthcare NHS Trust,17/07/2015,Rates,Directorate Of Strategy,London Borough Hammersmith & Fulham,3180264,"157,491.00",Optional requirement only
Department of Health,Imperial College Healthcare NHS Trust,14/07/2015,Lease Rents,Directorate Of Strategy,London Borough Of Hammersmith/Fulham,3176617,"95,266.10",Optional requirement only
Department of Health,Imperial College Healthcare NHS Trust,14/07/2015,Lease Rents,Directorate Of Strategy,London Borough Of Hammersmith/Fulham,3176618,"95,306.10",Optional requirement only
Department of Health,Imperial College Healthcare NHS Trust,01/07/2015,Pfh Admin Staff,Division Of Medicine,London Central & West Unscheduled Care Collab,3166494,"32,354.97",Optional requirement only
Department of Health,Imperial College Healthcare NHS Trust,16/07/2015,Gp Salaried Doctors,Division Of Medicine,London Central & West Unscheduled Care Collab,3178036,"39,510.85",Optional requirement only
Department of Health,Imperial College Healthcare NHS Trust,09/07/2015,Bldg/Eng Equip Maint/Rep,Directorate Of Strategy,London Surfacing Company Ltd,3164518,"42,075.63",Optional requirement only
Department of Health,Imperial College Healthcare NHS Trust,16/07/2015,Phone Instal & Maint,Information & Comms Technology,M&S Medicom,3168780,"93,855.00",Optional requirement only
Department of Health,Imperial College Healthcare NHS Trust,14/07/2015,P & M-Additions-Purchased,Capital Summary,Medical Imaging Systems Ltd,3164838,"70,182.00",Optional requirement only
Department of Health,Imperial College Healthcare NHS Trust,01/07/2015,Computer Maintenance,"Surg, Canc & Cardiovasc Div",Medical Imaging Systems Ltd,3164839,"57,341.86",Optional requirement only
Department of Health,Imperial College Healthcare NHS Trust,02/07/2015,Clinical Managed Service Contr,"Surg, Canc & Cardiovasc Div",Medtronic Ltd,3169701,"1,040,293.91",Optional requirement only
Department of Health,Imperial College Healthcare NHS Trust,28/07/2015,Hospitality,Press & Communications,Metropole Hotels(Holding) Limited,3184936,"45,670.30",Optional requirement only
Department of Health,Imperial College Healthcare NHS Trust,28/07/2015,Computer Software/License,Information & Comms Technology,Mill Systems Ltd,3181212,"38,880.00",Optional requirement only
Department of Health,Imperial College Healthcare NHS Trust,16/07/2015,Other Miscellaneous,Human Resources,Morelife (Uk) Limited,3178942,"56,850.00",Optional requirement only
Department of Health,Imperial College Healthcare NHS Trust,07/07/2015,Drugs Nhs,Investigative Sciences & C S,Nhs Business Services Authority,3170938,"36,471.90",Optional requirement only
Department of Health,Imperial College Healthcare NHS Trust,07/07/2015,Drugs Nhs,Investigative Sciences & C S,Nhs Business Services Authority,3170939,"35,692.55",Optional requirement only
Department of Health,Imperial College Healthcare NHS Trust,07/07/2015,Services Received - Nhsts,Investigative Sciences & C S,Nhs Business Services Authority,3170937,"36,656.97",Optional requirement only
Department of Health,Imperial College Healthcare NHS Trust,17/07/2015,Insurance Costs,Directorate Of Strategy,Nhs Litigation Authority,3180267,"45,940.50",Optional requirement only
Department of Health,Imperial College Healthcare NHS Trust,17/07/2015,Cnst Contributions,Other Hq Departments,Nhs Litigation Authority,3180266,"2,506,808.50",Optional requirement only
Department of Health,Imperial College Healthcare NHS Trust,14/07/2015,P & M-Additions-Purchased,Capital Summary,Nhs Supply Chain,3176645,"278,400.00",Optional requirement only
Department of Health,Imperial College Healthcare NHS Trust,14/07/2015,P & M-Additions-Purchased,Capital Summary,Nhs Supply Chain,3176661,"44,770.79",Optional requirement only
Department of Health,Imperial College Healthcare NHS Trust,02/07/2015,Supplies Issues Recharges,Stock,Nhs Supply Chain,3169982,"88,740.18",Optional requirement only
Department of Health,Imperial College Healthcare NHS Trust,02/07/2015,Supplies Issues Recharges,Stock,Nhs Supply Chain,3169992,"132,000.93",Optional requirement only
Department of Health,Imperial College Healthcare NHS Trust,02/07/2015,Supplies Issues Recharges,Stock,Nhs Supply Chain,3170015,"93,099.41",Optional requirement only
Department of Health,Imperial College Healthcare NHS Trust,09/07/2015,Supplies Issues Recharges,Stock,Nhs Supply Chain,3173270,"132,835.57",Optional requirement only
Department of Health,Imperial College Healthcare NHS Trust,09/07/2015,Supplies Issues Recharges,Stock,Nhs Supply Chain,3173273,"92,376.12",Optional requirement only
Department of Health,Imperial College Healthcare NHS Trust,09/07/2015,Supplies Issues Recharges,Stock,Nhs Supply Chain,3173280,"86,281.55",Optional requirement only
Department of Health,Imperial College Healthcare NHS Trust,16/07/2015,Supplies Issues Recharges,Stock,Nhs Supply Chain,3178191,"88,621.81",Optional requirement only
Department of Health,Imperial College Healthcare NHS Trust,16/07/2015,Supplies Issues Recharges,Stock,Nhs Supply Chain,3178192,"120,666.94",Optional requirement only
Department of Health,Imperial College Healthcare NHS Trust,16/07/2015,Supplies Issues Recharges,Stock,Nhs Supply Chain,3178193,"86,420.02",Optional requirement only
Department of Health,Imperial College Healthcare NHS Trust,28/07/2015,Supplies Issues Recharges,Stock,Nhs Supply Chain,3185071,"87,009.77",Optional requirement only
Department of Health,Imperial College Healthcare NHS Trust,28/07/2015,Supplies Issues Recharges,Stock,Nhs Supply Chain,3185072,"105,321.83",Optional requirement only
Department of Health,Imperial College Healthcare NHS Trust,28/07/2015,Supplies Issues Recharges,Stock,Nhs Supply Chain,3185074,"86,804.01",Optional requirement only
Department of Health,Imperial College Healthcare NHS Trust,28/07/2015,Supplies Issues Recharges,Stock,Nhs Supply Chain,3185076,"120,578.60",Optional requirement only
Department of Health,Imperial College Healthcare NHS Trust,28/07/2015,Supplies Issues Recharges,Stock,Nhs Supply Chain,3185077,"130,627.75",Optional requirement only
Department of Health,Imperial College Healthcare NHS Trust,28/07/2015,Supplies Issues Recharges,Stock,Nhs Supply Chain,3185078,"103,041.89",Optional requirement only
Department of Health,Imperial College Healthcare NHS Trust,28/07/2015,Med & Surg Maint Contract,Investigative Sciences & C S,Nhs Supply Chain,3183971,"55,243.82",Optional requirement only
Department of Health,Imperial College Healthcare NHS Trust,28/07/2015,Med & Surg Maint Contract,"Surg, Canc & Cardiovasc Div",Nhs Supply Chain,3183971,"63,101.10",Optional requirement only
Department of Health,Imperial College Healthcare NHS Trust,09/07/2015,Drugs Nhs,Division Of Medicine,North West Hospital Nhs Trust,3174212,"94,491.97",Optional requirement only
Department of Health,Imperial College Healthcare NHS Trust,09/07/2015,Drugs Nhs,Division Of Medicine,North West Hospital Nhs Trust,3174214,"294,587.62",Optional requirement only
Department of Health,Imperial College Healthcare NHS Trust,09/07/2015,Services Received - Nhsts,Division Of Medicine,North West Hospital Nhs Trust,3174206,"215,593.20",Optional requirement only
Department of Health,Imperial College Healthcare NHS Trust,28/07/2015,Other Research Exp - Non-Pay,Rd Medical Directorate,North West Hospital Nhs Trust,3174339,"360,350.00",Optional requirement only
Department of Health,Imperial College Healthcare NHS Trust,02/07/2015,Jac - Stock,Stock,Novartis Pharmaceutical (Uk) Ltd,3157201,"43,817.52",Optional requirement only
Department of Health,Imperial College Healthcare NHS Trust,14/07/2015,Jac - Stock,Stock,Novartis Pharmaceutical (Uk) Ltd,3176457,"36,336.48",Optional requirement only
Department of Health,Imperial College Healthcare NHS Trust,28/07/2015,Jac - Stock,Stock,Novartis Pharmaceutical (Uk) Ltd,3176123,"47,558.04",Optional requirement only
Department of Health,Imperial College Healthcare NHS Trust,07/07/2015,Consultancy Fees,Other Hq Departments,Oliver Wyman,3171425,"401,300.99",Optional requirement only
Department of Health,Imperial College Healthcare NHS Trust,07/07/2015,Consultancy Fees,Other Hq Departments,Oliver Wyman,3171443,"401,300.99",Optional requirement only
Department of Health,Imperial College Healthcare NHS Trust,07/07/2015,Consultancy Fees,Other Hq Departments,Oliver Wyman,3171444,"234,000.00",Optional requirement only
Department of Health,Imperial College Healthcare NHS Trust,02/07/2015,Computer Hardware Purch,Information & Comms Technology,Patients Know Best Limited,3164515,"37,547.38",Optional requirement only
Department of Health,Imperial College Healthcare NHS Trust,02/07/2015,Computer Software/License,Information & Comms Technology,Patients Know Best Limited,3164515,"32,052.62",Optional requirement only
Department of Health,Imperial College Healthcare NHS Trust,01/07/2015,Agency Nursing: Qualified,Division Of Medicine,Reed,3167676,"63,453.87",Optional requirement only
Department of Health,Imperial College Healthcare NHS Trust,09/07/2015,Agency Nursing: Qualified,Division Of Medicine,Reed,3173695,"128,268.10",Optional requirement only
Department of Health,Imperial College Healthcare NHS Trust,09/07/2015,Agency Nursing: Qualified,Division Of Medicine,Reed,3173696,"77,000.88",Optional requirement only
Department of Health,Imperial College Healthcare NHS Trust,14/07/2015,Agency Scient & Prof Qualified,Division Of Medicine,Reed,3174287,"36,478.62",Optional requirement only
Department of Health,Imperial College Healthcare NHS Trust,28/07/2015,Agency Nursing: Qualified,Division Of Medicine,Reed,3184846,"85,105.21",Optional requirement only
Department of Health,Imperial College Healthcare NHS Trust,28/07/2015,Agency Nursing: Qualified,Division Of Medicine,Reed,3184847,"33,930.25",Optional requirement only
Department of Health,Imperial College Healthcare NHS Trust,01/07/2015,Agency Nursing: Qualified,Division Of Women And Children,Reed,3167676,"44,916.00",Optional requirement only
Department of Health,Imperial College Healthcare NHS Trust,09/07/2015,Agency Nursing: Qualified,Division Of Women And Children,Reed,3173695,"94,820.44",Optional requirement only
Department of Health,Imperial College Healthcare NHS Trust,09/07/2015,Agency Nursing: Qualified,Division Of Women And Children,Reed,3173696,"38,474.34",Optional requirement only
Department of Health,Imperial College Healthcare NHS Trust,28/07/2015,Agency Nursing: Qualified,Division Of Women And Children,Reed,3184846,"41,586.90",Optional requirement only
Department of Health,Imperial College Healthcare NHS Trust,28/07/2015,Agency Nursing: Qualified,Division Of Women And Children,Reed,3184847,"33,163.99",Optional requirement only
Department of Health,Imperial College Healthcare NHS Trust,01/07/2015,Agency Nursing: Qualified,Investigative Sciences & C S,Reed,3167676,"43,151.67",Optional requirement only
Department of Health,Imperial College Healthcare NHS Trust,01/07/2015,Agency Scient & Prof Qualified,Investigative Sciences & C S,Reed,3167609,"56,321.99",Optional requirement only
Department of Health,Imperial College Healthcare NHS Trust,01/07/2015,Agency Scient & Prof Qualified,Investigative Sciences & C S,Reed,3167610,"62,364.13",Optional requirement only
Department of Health,Imperial College Healthcare NHS Trust,09/07/2015,Agency Nursing: Qualified,Investigative Sciences & C S,Reed,3173695,"105,369.20",Optional requirement only
Department of Health,Imperial College Healthcare NHS Trust,09/07/2015,Agency Nursing: Qualified,Investigative Sciences & C S,Reed,3173696,"60,767.59",Optional requirement only
Department of Health,Imperial College Healthcare NHS Trust,09/07/2015,Agency Scient & Prof Qualified,Investigative Sciences & C S,Reed,3173715,"50,966.90",Optional requirement only
Department of Health,Imperial College Healthcare NHS Trust,14/07/2015,Agency Scient & Prof Qualified,Investigative Sciences & C S,Reed,3174287,"63,776.45",Optional requirement only
Department of Health,Imperial College Healthcare NHS Trust,28/07/2015,Agency Nursing: Qualified,Investigative Sciences & C S,Reed,3184846,"52,795.55",Optional requirement only
Department of Health,Imperial College Healthcare NHS Trust,28/07/2015,Agency Nursing: Qualified,Investigative Sciences & C S,Reed,3184847,"49,740.40",Optional requirement only
Department of Health,Imperial College Healthcare NHS Trust,09/07/2015,Agency Nursing: Qualified,Private Patients Directorate,Reed,3173695,"53,488.64",Optional requirement only
Department of Health,Imperial College Healthcare NHS Trust,01/07/2015,Agency Nursing: Qualified,"Surg, Canc & Cardiovasc Div",Reed,3167676,"61,344.61",Optional requirement only
Department of Health,Imperial College Healthcare NHS Trust,09/07/2015,Agency Nursing: Qualified,"Surg, Canc & Cardiovasc Div",Reed,3173695,"172,601.23",Optional requirement only
Department of Health,Imperial College Healthcare NHS Trust,09/07/2015,Agency Nursing: Qualified,"Surg, Canc & Cardiovasc Div",Reed,3173696,"107,021.82",Optional requirement only
Department of Health,Imperial College Healthcare NHS Trust,14/07/2015,Agency Scient & Prof Qualified,"Surg, Canc & Cardiovasc Div",Reed,3174287,"98,923.37",Optional requirement only
Department of Health,Imperial College Healthcare NHS Trust,28/07/2015,Agency Nursing: Qualified,"Surg, Canc & Cardiovasc Div",Reed,3184846,"112,650.83",Optional requirement only
Department of Health,Imperial College Healthcare NHS Trust,28/07/2015,Agency Nursing: Qualified,"Surg, Canc & Cardiovasc Div",Reed,3184847,"89,663.10",Optional requirement only
Department of Health,Imperial College Healthcare NHS Trust,07/07/2015,Jac - Stock,Stock,Roche Products Ltd,3156317,"73,639.44",Optional requirement only
Department of Health,Imperial College Healthcare NHS Trust,09/07/2015,Jac - Stock,Stock,Roche Products Ltd,3158298,"113,855.18",Optional requirement only
Department of Health,Imperial College Healthcare NHS Trust,28/07/2015,Jac - Stock,Stock,Roche Products Ltd,3171255,"51,860.99",Optional requirement only
Department of Health,Imperial College Healthcare NHS Trust,16/07/2015,"Books, Journals & Subscriptions",Finance Directorate,Royal Marsden Nhs Foundation Trust,3178946,"120,000.00",Optional requirement only
Department of Health,Imperial College Healthcare NHS Trust,16/07/2015,Med & Surg Equip Leases,"Surg, Canc & Cardiovasc Div",Siemens Financial Services Ltd,3176707,"69,726.07",Optional requirement only
Department of Health,Imperial College Healthcare NHS Trust,23/07/2015,Ext Contract Portering,Directorate Of Strategy,Sodexo Limited,3181732,"459,593.12",Optional requirement only
Department of Health,Imperial College Healthcare NHS Trust,23/07/2015,Ext Contr Catering,Directorate Of Strategy,Sodexo Limited,3181732,"629,214.98",Optional requirement only
Department of Health,Imperial College Healthcare NHS Trust,23/07/2015,Ext Contr Domestics,Directorate Of Strategy,Sodexo Limited,3181732,"1,223,979.54",Optional requirement only
Department of Health,Imperial College Healthcare NHS Trust,23/07/2015,Ext Contr Oth Hotel Srv,Directorate Of Strategy,Sodexo Limited,3181732,"91,001.20",Optional requirement only
Department of Health,Imperial College Healthcare NHS Trust,01/07/2015,Ext Contr Hotel Srvcs - Pp,Private Patients Directorate,Sodexo Limited,3159317,"43,167.31",Optional requirement only
Department of Health,Imperial College Healthcare NHS Trust,28/07/2015,Ext Contr Oth Hotel Srv,Private Patients Directorate,Sodexo Limited,3185093,"168,458.00",Optional requirement only
Department of Health,Imperial College Healthcare NHS Trust,23/07/2015,Ext Contr Laundry,Directorate Of Strategy,Synergy Health Uk Ltd,3170476,"41,326.32",Optional requirement only
Department of Health,Imperial College Healthcare NHS Trust,23/07/2015,Ext Contr Laundry,Directorate Of Strategy,Synergy Health Uk Ltd,3170477,"52,353.37",Optional requirement only
Department of Health,Imperial College Healthcare NHS Trust,23/07/2015,Ext Contr Laundry,Directorate Of Strategy,Synergy Health Uk Ltd,3170478,"59,098.50",Optional requirement only
Department of Health,Imperial College Healthcare NHS Trust,01/07/2015,Buildings-Additions-Purchased,Capital Summary,T & B Contractors Ltd,3168481,"108,000.00",Optional requirement only
Department of Health,Imperial College Healthcare NHS Trust,21/07/2015,Buildings-Additions-Purchased,Capital Summary,Technical Initiatives Uk Ltd,3180551,"30,156.00",Optional requirement only
Department of Health,Imperial College Healthcare NHS Trust,14/07/2015,Rent,Directorate Of Strategy,Thames Valley Charitable Housing,3176933,"41,495.88",Optional requirement only
Department of Health,Imperial College Healthcare NHS Trust,01/07/2015,Thames Valley Housing Assoc,Housing Deductions,Thames Valley Charitable Housing,3168537,"108,463.74",Optional requirement only
Department of Health,Imperial College Healthcare NHS Trust,16/07/2015,Water,Directorate Of Strategy,Thames Water Utilities Limited,3178771,"35,176.99",Optional requirement only
Department of Health,Imperial College Healthcare NHS Trust,28/07/2015,Sewerage,Directorate Of Strategy,Thames Water Utilities Limited,3182818,"27,209.96",Optional requirement only
Department of Health,Imperial College Healthcare NHS Trust,28/07/2015,Organ Donor Expenses,Division Of Women And Children,The Anthony Nolan Trust,3184179,"25,830.00",Optional requirement only
Department of Health,Imperial College Healthcare NHS Trust,28/07/2015,Organ Donor Expenses,Division Of Women And Children,The Anthony Nolan Trust,3184180,"39,400.00",Optional requirement only
Department of Health,Imperial College Healthcare NHS Trust,14/07/2015,Organ Donor Expenses,"Surg, Canc & Cardiovasc Div",The Anthony Nolan Trust,3175113,"37,830.00",Optional requirement only
Department of Health,Imperial College Healthcare NHS Trust,28/07/2015,Organ Donor Expenses,"Surg, Canc & Cardiovasc Div",The Anthony Nolan Trust,3185145,"25,410.00",Optional requirement only
Department of Health,Imperial College Healthcare NHS Trust,01/07/2015,Audit Fees: Internal,Finance Directorate,Tiaa Ltd,3167544,"86,040.00",Optional requirement only
Department of Health,Imperial College Healthcare NHS Trust,08/07/2015,Internal Recharge: Other,"Surg, Canc & Cardiovasc Div",University Hospitals Bristol Nhs Found.Trust,3121801,"71,576.00",Optional requirement only
Department of Health,Imperial College Healthcare NHS Trust,01/07/2015,Phone Rental And Calls,Information & Comms Technology,Virgin Media Business  Ltd,3164514,"76,528.62",Optional requirement only
Department of Health,Imperial College Healthcare NHS Trust,23/07/2015,Phone Rental And Calls,Information & Comms Technology,Virgin Media Business  Ltd,3183087,"72,799.75",Optional requirement only
Department of Health,Imperial College Healthcare NHS Trust,02/07/2015,Drugs Nhs,Other Hq Departments,West Hertfordshire Hospitals Nhs Trust,3169990,"63,049.70",Optional requirement only
Department of Health,Imperial College Healthcare NHS Trust,21/07/2015,Services Received - Nhsts,Division Of Medicine,West London Mental Health Nhs Trust,3181025,"49,054.00",Optional requirement only
Department of Health,Imperial College Healthcare NHS Trust,21/07/2015,Services Received - Nhsts,Division Of Medicine,West London Mental Health Nhs Trust,3181026,"49,054.00",Optional requirement only
Department of Health,Imperial College Healthcare NHS Trust,02/07/2015,Other Research Exp - Non-Pay,Rd Medical Directorate,West London Mental Health Nhs Trust,3170027,"100,070.00",Optional requirement only
Department of Health,Imperial College Healthcare NHS Trust,09/07/2015,Drugs Nhs,Division Of Medicine,West Middlesex University Hospital Nhs Trust,3173967,"49,712.00",Optional requirement only
Department of Health,Imperial College Healthcare NHS Trust,09/07/2015,Miscellaneous Expenditure,Division Of Medicine,West Middlesex University Hospital Nhs Trust,3174203,"51,383.00",Optional requirement only
Department of Health,Imperial College Healthcare NHS Trust,09/07/2015,Miscellaneous Expenditure,Division Of Medicine,West Middlesex University Hospital Nhs Trust,3174208,"95,013.00",Optional requirement only
Department of Health,Imperial College Healthcare NHS Trust,09/07/2015,Miscellaneous Expenditure,Division Of Medicine,West Middlesex University Hospital Nhs Trust,3174213,"52,820.00",Optional requirement only
,,,,,,Sum:,"30,257,438.92",
